Cogmind - Beta 15 *** ADVENTURER MODE // 2025.05.24 @ 00:16:50 Player: Seralth Result: Destroyed by 1V-YU9(R) with Subdweller Machine Gun Performance ------------- Evolutions (0) 0 Regions Visited (2) 400 Robots Destroyed (6) 30 Value Destroyed (171) 171 Prototype IDs (0) 0 Alien Tech Used (0) 0 Bonus (0) 0 TOTAL SCORE: 601 Bonus ------- None Cogmind --------- Core Integrity 0/250 Matter 226/300 Energy 125/125 System Corruption 0% Temperature Cool (0) Movement Walking (120) Location -10/Subcaves Parts ------- > --- POWER (1) -------- Light Ion Engine > --- PROPULSION (2) --- Aluminum Leg > --- UTILITY (2) ------ (None) > --- WEAPON (2) ------- (None) > --- INVENTORY (5) ---- Small Storage Unit Peak State ------------ > --- POWER ------------ Ion Engine > --- PROPULSION ------- Aluminum Leg Aluminum Leg > --- UTILITY ---------- Small Storage Unit > --- WEAPON ----------- EM Pulse Gun Small Laser > --- INVENTORY -------- Light Ion Engine [Rating: 6] Favorites ----------- Power Ion Engine Engine Ion Engine Propulsion Aluminum Leg Leg Aluminum Leg Utility Small Storage Unit Storage Small Storage Unit Protection Scrap Shield Weapon Small Laser Energy Gun Small Laser Launcher Grenade Launcher Special Weapon Mining Laser Build | -11 -10 -10 ------- Run | Yrd Mat Sub Slots Evolved . | . . . Power . | . . . Propulsion . | . . . Utility . | . . . Weapon . | . . . Parts Attached 13 | 7 3 3 Power 2 | 2 . . Engine 2 | 2 . . Core . | . . . Reactor . | . . . Propulsion 3 | 2 . 1 Treads . | . . . Leg 3 | 2 . 1 Wheel . | . . . Hover . | . . . Flight . | . . . Utility 2 | 1 . 1 Device . | . . . Storage 1 | 1 . . Processor . | . . . Hackware . | . . . Protection 1 | . . 1 Artifact . | . . . Weapon 6 | 2 3 1 Energy Gun 2 | 2 . . Energy Cannon . | . . . Ballistic Gun . | . . . Ballistic Cannon . | . . . Launcher 1 | . 1 . Special Weapon 3 | . 2 1 Impact Weapon . | . . . Slashing Weapon . | . . . Piercing Weapon . | . . . Special Melee Weapon . | . . . Unidentified Prototypes . | . . . Parts Lost 7 | . . 7 Power 1 | . . 1 Propulsion 2 | . . 2 Utility 1 | . . 1 Weapon 3 | . . 3 Highest Loss Streak 6 | . . 6 To Critical Strikes . | . . . Average Backups 1 | . 1 2 Power . | . 1 . Propulsion . | . . . Utility . | . . . Weapon . | . . . Tool/Special . | . . . Unused Backups . | . . . Power . | . . . Propulsion . | . . . Utility . | . . . Weapon . | . . . Tool/Special . | . . . Average Slot Usage (%) 78 | . 85 52 Engine 13 | . 14 10 Leg 25 | . 28 17 Storage 13 | . 14 9 Energy Gun 10 | . 13 . Launcher 10 | . 12 . Special Weapon 3 | . 1 10 Peak Build Rating 6 | 6 6 6 Average Rating 5 | 4 6 4 On Entrance 4 | . 6 6 Naked Turns . | . . . Heaviest Build 21 | 13 14 21 Greatest Support 20 | 20 20 20 Greatest Overweight (x) 2 | . . 2 Average Overweight (x) . | . . . Largest Inventory Capacity 8 | 8 8 8 Average Capacity 7 | 6 8 7 Most Carried 5 | 1 3 5 Average Carried 2 | . 1 3 Final Capacity 8 | 8 8 5 Final Carried 3 | 1 3 1 Class Distribution -------------------- 100% | Mutant Dominant Class ---------------- Mutant | -10/Materials Mutant | -10/Subcaves Resources | -11 -10 -10 ----------- Run | Yrd Mat Sub Matter Collected 256 | 223 33 . Remotely . | . . . Salvage Created 120 | . 94 26 Parts 3 | . 3 . Haulers Intercepted . | . . . Recyclers Shooed . | . . . Parts Field Recycled . | . . . Retrieved Matter . | . . . Parts Self-Destructed . | . . . Prevented . | . . . Kills | -11 -10 -10 ------- Run | Yrd Mat Sub Combat Hostiles Destroyed 6 | . 5 1 Cannons 1 | . . 1 AOE 5 | . 5 . Classes Destroyed 3 | . 2 1 Swarmer 3 | . 3 . Grunt 2 | . 2 . Subdweller 1 | . . 1 Best Kill Streak 3 | . 3 1 Combat Bots Only 3 | . 3 1 Max Kills in Single Turn 2 | . 2 1 Gunslinging . | . . . Exploded 2 | . 2 . Melee . | . . . Uniques/NPCs Destroyed . | . . . Combat | -11 -10 -10 -------- Run | Yrd Mat Sub Hostile Shots Fired 75 | . 6 69 Missed 22 | . . 22 Hits 53 | . 6 47 Projectile 53 | . 6 47 Critical Strikes 1 | . . 1 Damage Taken 922 | . 111 811 Core 250 | . 21 229 Absorbed by Shields . | . . . Ignored by Resistances 256 | . 30 226 Core Remaining (%) 100 | 100 . . Volleys Fired 7 | . 5 2 Largest 2 | . 2 2 Hottest 200 | . 70 200 Shots Fired 13 | . 10 3 Gun 5 | . 5 . Cannon . | . . . Launcher 5 | . 5 . Special 3 | . . 3 Kinetic . | . . . Thermal 8 | . 5 3 Explosive 5 | . 5 . Electromagnetic . | . . . Robot Hit Streak 7 | . 5 7 Robot Miss Streak 1 | . 1 . Penetration Max . | . . . Secondary Targets . | . . . Shots Hit Robots 11 | . 9 2 Core Hits 10 | . 8 2 Critical Kills . | . . . Critical Parts Destroyed . | . . . Critical Strikes . | . . . Melee Attacks . | . . . Impact . | . . . Slashing . | . . . Piercing . | . . . Sneak Attacks . | . . . Combat Hostiles . | . . . Follow-up Attacks . | . . . Damage Inflicted 357 | . 309 48 Guns 47 | . 47 . Cannons . | . . . Explosions 260 | . 260 . Melee . | . . . Ramming 2 | . 2 . Kinetic . | . . . Thermal 95 | . 47 48 Explosive 260 | . 260 . Electromagnetic . | . . . Impact . | . . . Slashing . | . . . Piercing . | . . . Highest Corruption . | . . . Average Corruption . | . . . Corruption Purged . | . . . Corruption Blocked . | . . . Overload Shots . | . . . Overflow Damage . | . . . Projectiles . | . . . Explosions . | . . . Melee . | . . . Knockbacks . | . . . Impact . | . . . Kinetic . | . . . Secondary . | . . . Self-Inflicted Damage 54 | . 54 . Shots 2 | . 2 . Rammed . | . . . Targets Rammed 1 | . 1 . Kicked 1 | . 1 . Crushed . | . . . Highest Temperature 54 | . 54 13 Average Temperature 21 | . 24 8 Received Heat Transfer 285 | . 27 258 Siege Activations . | . . . Martial Activations . | . . . Shielding Activations . | . . . Robots Disrupted . | . . . Combat Hostiles . | . . . Robots Corrupted . | . . . Combat Hostiles . | . . . Parts Fried . | . . . Impact Corruptions . | . . . Robots Melted . | . . . Combat Hostiles . | . . . Parts Melted 1 | . 1 . Heat Transferred 200 | . 100 100 Parts Sabotaged . | . . . Parts Stolen . | . . . Parts Stripped . | . . . Power Chain Reactions . | . . . Alert | -11 -10 -10 ------- Run | Yrd Mat Sub Maximum Alert Level . | . . . Low Security (%) 100 | 100 100 . Level 1 . | . . . Level 2 . | . . . Level 3 . | . . . Level 4 . | . . . Level 5 . | . . . High Security . | . . . Max Security . | . . . Peak Influence 103 | . 103 . Initial . | . . . Average 29 | . 31 . Influence Increases 173 | . 173 . Destroy 0b10 Robot/C 100 | . 100 . Destroy Leader 20 | . 20 . Successful Hack 10 | . 10 . Disable Machine 18 | . 18 . Destroy Structure 25 | . 25 . Influence Decreases 173 | . 173 . Time Decay 173 | . 173 . Squads Dispatched . | . . . Investigation . | . . . Extermination . | . . . Reinforcement . | . . . Assault . | . . . Garrison . | . . . Intercept . | . . . Searches Triggered . | . . . Construction Impeded . | . . . Haulers Reinforced . | . . . Active Scanning Responses . | . . . Cargo Convoy Interrupts . | . . . Stealth | -11 -10 -10 --------- Run | Yrd Mat Sub Distress Signals . | . . . Communications Jammed . | . . . Distress Signals . | . . . Times Spotted 18 | . 7 11 Peak Tracking Total 9 | . 3 9 Tactical Retreats . | . . . Traps | -11 -10 -10 ------- Run | Yrd Mat Sub Traps Triggered . | . . . Indirectly . | . . . Trap Hack Attempts . | . . . Triggered . | . . . Disarmed . | . . . Reprogrammed . | . . . Reused . | . . . Traps Extracted . | . . . Installed . | . . . Triggered . | . . . Machines | -11 -10 -10 ---------- Run | Yrd Mat Sub Machines Disabled 2 | . 2 . Max in Single Turn 1 | . 1 . Machines Repaired . | . . . Machines Dismantled . | . . . Machines Sabotaged . | . . . Overloaded Fab Kills . | . . . Hacking | -11 -10 -10 --------- Run | Yrd Mat Sub Machines Accessed 2 | . 2 . Terminals 1 | . 1 . Fabricators . | . . . Repair Stations . | . . . Recycling Units 1 | . 1 . Scanalyzers . | . . . Garrison Access . | . . . Total Hacks 6 | . 6 . Successful 5 | . 5 . Failed 1 | . 1 . Catastrophic . | . . . Database Lockouts . | . . . Manual . | . . . Terminals 2 | . 2 . Fabricators . | . . . Repair Stations . | . . . Recycling Units 4 | . 4 . Scanalyzers . | . . . Garrison Access . | . . . Terminal Hacks 1 | . 1 . Record 1 | . 1 . Fabricator Hacks . | . . . Repair Station Hacks . | . . . Recycling Unit Hacks 4 | . 4 . Process 1 | . 1 . Report Inventory 1 | . 1 . Retrieve Matter 2 | . 2 . Scanalyzer . | . . . Garrison Access Hacks . | . . . Unauthorized Hacks . | . . . Terminals . | . . . Fabricators . | . . . Repair Stations . | . . . Recycling Units . | . . . Scanalyzers . | . . . Garrison Access . | . . . Data Cores Recovered . | . . . Used . | . . . Hacking Detections 1 | . 1 . Full Trace Events . | . . . Feedback Events . | . . . Feedback Blocked . | . . . Robot Schematics Acquired . | . . . Robots Built . | . . . Authchips . | . . . Time . | . . . Total Robot Build Rating . | . . . Part Schematics Acquired . | . . . Parts Built . | . . . Authchips . | . . . Time . | . . . Total Part Build Rating . | . . . Parts Repaired . | . . . Time . | . . . Parts Recycled . | . . . Recycled Matter 21 | . 21 . Retrieved Matter 21 | . 21 . Retrieved Components . | . . . Parts Scanalyzed . | . . . Part Schematics Acquired . | . . . Parts Damaged . | . . . Bothacking | -11 -10 -10 ------------ Run | Yrd Mat Sub Used RIF Installer . | . . . Robots Hacked . | . . . Non-combat . | . . . Combat . | . . . Robot Hacks Applied . | . . . Relay Couplers Released . | . . . Fabnet Peak Effective % . | . . . Robots Rewired . | . . . Allies Hacked . | . . . Hacks Repelled . | . . . Allies | -11 -10 -10 -------- Run | Yrd Mat Sub Total Allies . | . . . Largest Group . | . . . Highest-Rated Group . | . . . Highest-Rated Ally . | . . . Total Orders . | . . . Ally Attacks . | . . . Total Damage . | . . . Kills . | . . . Allies Corrupted . | . . . Allies Melted . | . . . Intel | -11 -10 -10 ------- Run | Yrd Mat Sub Active Infowar (turns) . | . . . Robot Analysis Total . | . . . Derelict Logs Recovered . | . . . Drone Launches . | . . . Drone Recoveries . | . . . Exploration | -11 -10 -10 ------------- Run | Yrd Mat Sub Turns Passed 857 | 58 645 154 Spaces Moved 400 | 46 257 97 Core 38 | 10 . 28 Treads . | . . . Legs 362 | 36 257 69 Wheels . | . . . Hover . | . . . Flight . | . . . Fastest Speed 50 | 50 120 100 Average Speed 123 | 104 120 141 Slowest Speed 260 | 120 120 260 Overloaded Moves . | . . . Propulsion Burnouts . | . . . Robots Hopped . | . . . Potential Cave-ins . | . . . Cave-ins Triggered . | . . . Exploration Rate (%) 18 | 3 41 11 Regions Visited 2 Branch Regions 1 Pre-discovered Areas . | . . . Known Exits Taken . | . . . Unknown Exits Taken 2 | 1 1 . Scrap Searched . | . . . Spaces Dug . | . . . Terrain Destroyed 23 | . 23 . Melee . | . . . Projectile . | . . . AOE 23 | . 23 . Terrain Rammed . | . . . Walls Destroyed . | . . . Machines Disabled . | . . . Actions | -11 -10 -10 --------- Run | Yrd Mat Sub Total 739 | 52 582 105 Wait 315 | . 315 . Move 398 | 45 256 97 Hop . | . . . Pick Up 3 | . 2 1 Fast Attach 6 | 6 . . Attach 4 | . . 4 Detach 1 | . . 1 Swap 4 | 1 3 . Drop . | . . . Fire 7 | . 5 2 Melee . | . . . Ram . | . . . Kick 1 | . 1 . Crush . | . . . Escape Stasis . | . . . Rewire . | . . . Trap . | . . . Miscellaneous . | . . . Route ------- -11/Scrapyard -10/Materials (discovered 2 exits: [*Min] / [*Sub]) -10/Subcaves History --------- Turn | Location | Event 9 | -11/Scrapyard | Discovered new exit (range 15) 59 | -11/Scrapyard | Entered Materials 304 | -10/Materials | Build established: Mutant 632 | -10/Materials | Discovered new exit (range 9) 642 | -10/Materials | Discovered new exit (range 7) 704 | -10/Materials | Entered Subcaves 705 | -10/Subcaves | Approached by a straggling Scientist 743 | -10/Subcaves | Ambushed by swarm of Subdwellers 743 | -10/Subcaves | Ambushed by Subdwellers from Twisted Machinery 747 | -10/Subcaves | Ambushed by Subdwellers from Twisted Machinery 753 | -10/Subcaves | Ambushed by Subdwellers from Twisted Machinery 753 | -10/Subcaves | Ambushed by Subdwellers from Twisted Machinery 760 | -10/Subcaves | Core integrity fell below 50% 796 | -10/Subcaves | Lost 6 parts (1p2n3w) 825 | -10/Subcaves | Lost 5 allies 850 | -10/Subcaves | Core integrity fell below 20% 858 | -10/Subcaves | Destroyed by 1V-YU9(R) with Subdweller Machine Gun Last Messages --------------- 00753_ VF-W3J(R) angrily emerges from the Twisted Machinery. 00753_ 3F-T2R(R) angrily emerges from the Twisted Machinery. 00753_ Mining Laser destroyed. 00753_ Ion Engine destroyed. 00754_ ME-FET(R) emerges from the Twisted Machinery. 00754_ PX-279(R) suffers critical hit (Burn). LD-ORR(c): "I think it's somewhere southeast of here" 00756_ PX-279(R) suffers critical hit (Destroy). 00757_ Mining Laser destroyed. 00758_ 46-SQB(R) affixes Scrap Shield Fragment to Scrap Shield. 00761_ Aluminum Leg destroyed. 00763_ 46-SQB(R) destroyed. 00765_ Aluminum Leg destroyed. 00794_ LD-ORR(c) destroyed. 00856_ Scrap Shield destroyed. Map ----- +----------------------------------------------------+ | | | | | ?????????????????????????????????????????????????? | | ?????????????????????????????????????????????????? | | ?????????????????????????????????????????????????? | | ?????????????????????????????????????????????????? | | ?????????????????????????????????????????????????? | | ?????????????????????????????????????????????????? | | ?????????????????????????????????????????????????? | | ?????????????????????????????????????????????????? | | ?????????????????????????????????????????????????? | | ?????????????????????????????? " ????????????????? | | ??????????????????????????????? ????????????????? | | ???????????????????????????????? ???????????????? | | ????????????????????????????????? #####? ????????? | | ????????????????????????????????? # ?????????? | | ?????????????????????????????????## ????######? | | ?????????????????????????????????#" ##????# ## | | ????????????????????????????######< <###?## | | ???????????????????????????## ## < ### | | ???????????????????????????# RR ## | | ???????????????????????????# RR ##### | | ???????????????????#????#### ### ##???# | | ???????????????????# ### # ### ##????# | | ???????????????????# ## ### ##?????# | | ???????????????????# @ R #?# #??????# | | ???????????????????# ### #?###??????# | | ???????????????????# ???## #??????????# | | ??????????????????# ????# #??????????# | | ?????????????????# ???? #?????????? | | ?????????????????# ???"" #?????????# | | ?????????????????#????" ## #?????????# | | ?????????????????????" ?# ##?????????# | | ????????????????????" ??## ## #?????????## | | ???????????????????? ????### #? ????????## | | ???????????????????????????## #?# ???????# | | ????????????????????????????## #?? ?????#### | | ????????????????????????????? # #?? ?????## #? | | ?????????????????????????????# # ?? ???## ## | | ?????????????????????????????# #?#????#???## # | | ??????????????????????????????? ???????????# # | | ???????????????????????????????????????????# | | ??????????????????????????????????????????## | | ?????????????????????????????????????????## | | ?????????????????????????????????????????#" # | | ????????????????????????????????????????## #### | | ????????????????????????????????????????# ##??? | | ??????????????????????????????###???????# "##???? | | ??????????????????????????????? #??????#%!!"#???? | | ???????????????????????????????? ###???#!![%#???? | +----------------------------------------------------+ Best States ------------- Heat Dissipation 25 Energy Generation 10 Energy Capacity 250 Matter Stores 253 Matter Capacity 300 Sight Range 16 Terrain Scan Density 10 Armor Coverage 800 Resistance: KI 20 Resistance: TH 20 Resistance: EX 20 Resistance: EM 20 Resistance: I 20 Resistance: S 20 Resistance: P 20 Evasion (%) 55 Offensive Hacking 10 Item Schematics ----------------- None Robot Schematics ------------------ None Fabricated ------------ Nothing Repaired ---------- Nothing Alien Tech Used ----------------- None Achievements -------------- None Challenges ------------ None Game ------ Seed PartitionArmorVibroblade Manual? 0 Play Time 00:06:43 Cumulative 9.9 hours Start 2025.05.24 @ 00:11:37 End 2025.05.24 @ 00:16:50 Sessions 1 Manual Loads 0 Difficulty Adventurer Special Mode None Game No. 17 Rogue 3 Adventurer 14 Explorer 0 Win Type - Total 0 Types 0/0/0/0/0/0/0/0/0/0 Lore% 6 Gallery% 19 Achievement% 17 Wizard Run 0 Options --------- Layout 1 ASCII 0 Keyboard 1 Movement Numpad Keybinds 0 Fullscreen 1 Font 32/SmallcapsGlow Map View 50x40 Zoom Use 0% Tactical HUD 1 Map Filters NONE Filters NONE Steam 1 RUN: b0d344a5-3e73-46c6-b7f7-506650dafc3f